bitfinex/quotes_ETHUSD_20241217
["timestamp","ask_amount","ask_price","bid_price","bid_amount"]
[1734468028666,2.53428,3945.9,3945.3,0.3203]
[1734468029103,2.787708,3945.9,3945.3,0.3203]
[1734468029318,0.253428,3945.9,3945.3,0.3203]
[1734468029465,2.53441,3945.7,3945.3,0.3203]
[1734468029668,2.53442,3945.7,3945.3,0.3203]
[1734468030107,2.787708,3945.9,3945.3,0.3203]
[1734468030873,2.53413,3946.2,3945.3,0.3203]
[1734468031076,3.3657,3946.8,3945.3,0.3203]
[1734468031277,1.58913725,3947.3,3945.7,0.3203]
[1734468031278,0.832,3947.1,3945.7,0.3203]
[1734468031503,0.832,3947.1,3945.9,0.3203]
[1734468031705,2.53388,3946.6,3945.9,0.3203]
[1734468031919,2.53395,3946.4,3945.9,0.2203]
[1734468032236,0.253388,3946.6,3945.9,0.2203]
[1734468032237,2.53421,3946.0,3945.9,0.2203]
[1734468032738,2.53433,3945.9,3944.9,0.55]
[1734468032877,2.53433,3945.9,3945.0,0.10392146]
[1734468033081,2.53433,3945.9,3944.9,3.55]
[1734468033082,2.53433,3945.9,3945.1,0.10392146]
[1734468033324,0.253388,3946.6,3944.9,0.55]
[1734468033483,2.5341,3946.2,3945.0,1.37135438]
[1734468033686,2.5341,3946.2,3945.1,0.10394438]
[1734468033890,2.5341,3946.2,3945.2,0.10394438]
[1734468034104,2.5341,3946.2,3945.3,0.10394438]
[1734468034298,2.5341,3946.2,3945.0,1.26742]
[1734468034499,0.2787188,3946.5,3945.1,0.10394263]
[1734468034731,0.2787188,3946.5,3945.2,0.10394263]
[1734468034902,0.2787188,3946.5,3945.3,0.2203]
[1734468034903,2.53421,3946.1,3945.3,0.2203]
[1734468036024,2.53429,3945.9,3945.3,0.2203]
[1734468037128,2.53409,3946.2,3945.3,0.2203]
[1734468037299,2.53453,3945.5,3945.3,0.2203]
[1734468037650,2.53421,3946.0,3944.6,0.2203]
[1734468037651,1.92205696,3946.0,3944.6,0.2203]
[1734468037942,0.8294,3945.7,3944.6,0.2203]
[1734468038147,2.8126188,3946.5,3944.6,0.2203]
[1734468038148,0.8294,3946.2,3944.6,0.2203]
[1734468038442,0.8294,3946.2,3944.8,0.2203]
[1734468038649,2.53442,3945.7,3944.8,0.2203]
[1734468039411,3.36352,3946.2,3944.8,0.2203]
[1734468039639,2.53456,3945.5,3944.8,0.2203]
[1734468039837,2.53456,3945.5,3944.8,0.1203]
[1734468040035,2.53426,3946.0,3944.8,0.1203]
[1734468040249,0.336366,3945.9,3944.8,0.1203]
[1734468040420,1.05942483,3946.5,3945.8,0.25]
[1734468040626,1.05942483,3947.9,3947.5,1.26661]
[1734468040823,0.1639297,3948.1,3947.4,0.8056092]
[1734468041108,0.1639297,3948.1,3947.6,0.55]
[1734468041722,0.1639297,3948.1,3947.5,1.81661]
[1734468041918,0.1639297,3948.1,3946.9,1.92205696]
[1734468041919,0.1639297,3948.1,3947.6,0.10359757]
[1734468042214,0.1639297,3948.1,3947.4,0.55]
[1734468042444,0.1639297,3948.1,3947.6,0.55]
[1734468042759,0.1639297,3948.1,3947.7,0.10346697]
[1734468042945,0.1639297,3948.1,3947.8,0.1203]
[1734468043157,0.1639297,3948.1,3947.8,0.0203]
[1734468046424,0.1639297,3948.1,3947.8,0.0403]
[1734468049537,0.1639297,3948.1,3947.9,0.55]
[1734468049959,0.1639297,3948.1,3947.8,0.0403]
[1734468052556,2.6967897,3948.1,3947.8,0.02]
[1734468053582,0.1639297,3948.1,3947.8,0.02]
[1734468057957,0.1639297,3948.1,3947.4,0.0203]
[1734468058153,0.1639297,3948.1,3947.5,0.10330023]
[1734468058360,0.1639297,3948.1,3947.4,0.0203]
[1734468058954,0.9783297,3948.1,3946.7,0.0203]
[1734468059288,0.9783297,3948.1,3946.8,0.1033582]
[1734468059595,2.5332,3947.6,3946.9,0.1033582]
[1734468059758,2.5332,3947.6,3946.7,0.0203]
[1734468060091,2.53353,3947.1,3946.3,0.0203]
[1734468060247,2.53353,3947.1,3946.4,0.10346482]
[1734468060450,3.8144,3947.9,3946.5,0.10346482]
[1734468060451,2.53339,3947.3,3946.5,0.10346482]
[1734468060658,2.53339,3947.3,3946.6,0.10346538]
[1734468061089,0.50666,3947.3,3946.3,0.0203]
[1734468061287,2.5335,3947.1,3946.4,0.10348551]
[1734468061589,2.5335,3947.1,3946.3,0.0203]
[1734468061756,2.5335,3947.1,3946.4,0.1035023]
[1734468062089,2.53357,3947.0,3946.5,0.10350274]
[1734468062393,2.53357,3947.0,3946.3,0.0203]
[1734468062590,2.53357,3947.0,3946.4,0.10355539]
[1734468062747,2.53357,3947.0,3946.3,0.0203]
[1734468062951,2.53357,3947.0,3946.4,0.10355727]
[1734468063188,2.53357,3947.0,3946.3,0.0203]
[1734468063346,2.53357,3947.0,3946.4,0.1035538]
[1734468063700,0.253357,3947.0,3946.0,0.16569497]
[1734468063989,0.253357,3947.0,3946.1,0.10356378]
[1734468063990,2.53389,3946.5,3946.1,0.10356378]
[1734468064187,1.92205696,3946.8,3945.6,0.0203]
[1734468064394,2.53411,3946.2,3945.7,0.10358498]
[1734468064601,2.53411,3946.2,3945.6,0.0203]
[1734468064799,2.53414,3946.1,3946.0,0.01]
[1734468065777,5.53414,3946.1,3946.0,0.01]
[1734468066195,3.8062,3946.3,3945.0,0.01]
[1734468066355,2.53462,3945.4,3945.0,0.01]
[1734468066547,1.92205696,3946.0,3945.0,0.01]
[1734468066857,4.45657696,3945.6,3945.0,0.01]
[1734468067059,2.53474,3945.2,3945.0,0.01]
[1734468067704,3.0,3945.5,3945.0,0.01]
[1734468067861,2.53478,3945.1,3945.0,0.01]
[1734468068061,3.0,3945.5,3945.0,0.01]
[1734468068062,2.53467,3945.3,3945.0,0.01]
[1734468069187,2.53473,3945.2,3945.0,0.01]
[1734468069773,2.53478,3945.1,3945.0,0.01]
[1734468072702,3.0,3945.5,3943.1,0.17267019]
[1734468072703,3.0,3945.5,3943.8,0.55]
[1734468072912,2.53498,3944.8,3944.0,0.55]
[1734468073198,2.53503,3944.8,3944.1,0.10340972]
[1734468073406,2.53503,3944.8,3943.8,0.55]
[1734468073558,2.53505,3944.7,3943.9,0.10339599]
[1734468073758,2.53505,3944.7,3943.5,0.71544945]
[1734468073759,2.53505,3944.7,3943.5,0.55]
[1734468073959,2.53524,3944.4,3943.6,0.77738533]
[1734468074195,2.53513,3944.6,3943.3,1.26797]
[1734468074410,2.53513,3944.6,3943.5,0.55]
[1734468074565,2.53513,3944.6,3943.6,0.10336568]
[1734468074770,2.53513,3944.6,3943.4,0.55]
[1734468075107,2.53513,3944.6,3943.3,1.26797]
[1734468075108,2.5352,3944.5,3943.6,0.55]
[1734468075312,1.92205696,3944.3,3942.8,3.0]
[1734468075472,2.53556,3943.9,3942.9,0.10335438]
[1734468075673,1.92205696,3944.3,3943.0,0.10336049]
[1734468075874,1.92205696,3944.3,3942.7,1.26814]
[1734468075875,2.53564,3943.8,3942.7,1.26814]
[1734468076215,2.53564,3943.8,3942.8,0.10335864]
[1734468076517,2.53543,3944.1,3942.7,1.26814]
[1734468076817,2.53552,3944.0,3942.8,1.37141924]
[1734468077039,2.53552,3944.0,3942.9,0.68714192]
[1734468077899,0.8062,3944.5,3943.1,1.92205696]
[1734468078160,1.92205696,3945.1,3943.1,1.92205696]
[1734468078161,2.53498,3944.8,3943.2,1.05441526]
[1734468078338,2.53498,3944.8,3943.4,0.55]
[1734468078502,0.8062,3945.3,3943.7,1.26783]
[1734468078840,2.53492,3944.9,3943.8,0.55]
[1734468079041,2.53498,3944.8,3943.8,0.55]
[1734468082219,2.53498,3944.8,3943.7,1.26783]
[1734468082644,2.53162107,3944.8,3943.7,1.26783]
[1734468082844,2.53162107,3944.8,3943.8,0.1730807]
[1734468083169,2.53517,3944.5,3943.4,1.26792]
[1734468083307,2.53517,3944.5,3943.0,1.29341415]
[1734468083503,2.53517,3944.5,3943.1,0.26880343]
[1734468083752,2.53517,3944.5,3943.2,0.10337988]
[1734468083906,2.53517,3944.5,3943.3,0.25706622]
[1734468084107,2.53517,3944.5,3943.4,0.10337988]
[1734468084351,2.53517,3944.5,3943.4,1.37129988]
[1734468084557,2.53517,3944.5,3943.5,0.10337988]
[1734468084760,2.53517,3944.5,3943.4,1.26792]
[1734468085063,2.5351,3944.7,3943.5,1.51347872]
[1734468085271,0.8062,3945.3,3943.9,1.26778]
[1734468085419,2.53481,3945.1,3944.0,0.10344349]
[1734468085717,3.8062,3945.3,3944.1,0.10343113]
[1734468085917,2.53479,3945.1,3944.0,1.26773]
[1734468086117,2.53479,3945.1,3944.1,0.28520771]
[1734468086359,2.53479,3945.1,3944.2,0.10343471]
[1734468086759,2.53479,3945.1,3944.2,0.00343471]
[1734468087171,2.53479,3945.1,3944.1,0.181773]
[1734468088186,2.53479,3945.1,3944.1,0.34759465]
[1734468088964,2.53446,3945.7,3944.6,1.26755]
[1734468088965,2.53443,3945.7,3944.6,1.26755]
[1734468089175,2.53443,3945.7,3944.7,1.2928678]
[1734468089511,2.53443,3945.7,3944.8,0.1659295]
[1734468089674,2.53443,3945.7,3944.8,0.16592278]
[1734468089825,2.53443,3945.7,3944.2,3.55]
[1734468089826,2.53443,3945.7,3944.5,1.26758]
[1734468090025,2.53443,3945.7,3944.6,0.29268536]
[1734468090248,2.53443,3945.7,3944.7,0.16592736]
[1734468090823,2.53443,3945.7,3944.7,0.06592736]
[1734468091033,1.92205696,3946.0,3944.7,0.06592736]
[1734468091358,2.53435,3945.8,3944.7,1.2675]
[1734468091922,2.53422,3946.0,3944.8,1.26748]
[1734468092123,0.8062,3946.2,3944.8,0.15209452]
[1734468092319,2.53428,3945.9,3944.8,0.02534652]
[1734468092525,2.53436,3945.8,3944.7,1.26752]
[1734468092861,0.8062,3946.2,3944.7,1.26752]
[1734468092862,2.5344,3945.7,3944.7,1.26752]
[1734468093547,0.8062,3946.2,3944.5,1.26758]
[1734468093548,2.53414,3946.1,3944.5,1.26758]
[1734468093751,2.53448,3945.6,3944.5,1.26758]
[1734468093935,2.53456,3945.5,3944.2,0.62307915]
[1734468094143,2.53456,3945.5,3944.3,0.17307915]
[1734468094348,2.53456,3945.5,3944.5,1.26758]
[1734468094861,2.53456,3945.5,3944.3,0.17307915]
[1734468095048,2.53454,3945.5,3944.4,1.26761]
[1734468095361,2.53454,3945.5,3944.4,1.75667892]
[1734468095559,2.53454,3945.5,3944.4,1.26761]
[1734468095789,2.55609096,3946.0,3944.2,0.45]
[1734468095976,3.34983,3945.5,3943.5,0.14216063]
[1734468096122,2.53492,3944.9,3943.7,1.26781]
[1734468096326,2.53492,3944.9,3943.5,0.14216063]
[1734468096327,2.53492,3944.9,3943.8,1.2678]
[1734468096565,2.53492,3944.9,3943.9,1.39455]
[1734468097357,0.8153,3945.5,3943.9,1.39455]
[1734468097358,2.5348,3945.1,3943.9,0.12678]
[1734468097562,2.5348,3945.1,3944.1,1.2677]
[1734468097741,0.8153,3945.5,3944.0,0.02535031]
[1734468097742,3.8153,3945.5,3944.2,1.26767]
[1734468097940,2.53474,3945.2,3944.3,0.02535032]
[1734468098152,0.8153,3945.5,3944.2,1.26767]
[1734468098344,0.8153,3945.5,3944.0,0.55]
[1734468098670,2.53468,3945.3,3944.2,1.26766]
[1734468098868,3.169583,3945.4,3944.3,1.37165775]
[1734468099067,3.169583,3945.4,3944.4,0.10401775]
[1734468099273,3.169583,3945.4,3944.5,0.10401775]
[1734468099274,2.53461,3945.4,3944.5,0.10401775]
[1734468099481,2.53461,3945.4,3944.3,1.26764]
[1734468099645,2.53461,3945.4,3944.4,0.10399924]
[1734468099834,2.53461,3945.4,3944.5,0.10399924]
[1734468100029,2.53461,3945.4,3944.6,0.10399924]
[1734468100232,2.53448,3945.6,3944.7,0.10399924]
[1734468100529,2.53454,3945.5,3944.8,0.10399924]
[1734468100729,2.53454,3945.5,3944.5,1.26757]
[1734468100730,2.53454,3945.5,3944.9,0.10399924]
[1734468100967,2.53454,3945.5,3945.0,0.10399924]
[1734468101168,2.53454,3945.5,3945.1,0.10399924]
[1734468101379,2.53454,3945.5,3944.8,0.16643625]
[1734468101548,2.53454,3945.5,3944.9,0.10400601]
[1734468101748,2.9330218,3945.5,3945.0,0.10400601]
[1734468101958,2.9330218,3945.5,3945.1,0.10400601]
[1734468102271,2.9330218,3945.5,3944.3,1.26764]
[1734468102480,0.3984818,3945.5,3944.3,1.26764]
[1734468102771,0.634978,3945.6,3944.1,0.181778]
[1734468102772,0.634978,3945.6,3944.4,0.10400028]
[1734468102961,2.53463,3945.4,3944.5,0.10400028]
[1734468103155,0.634978,3945.6,3944.6,0.10400028]
[1734468103156,2.55703496,3945.6,3944.6,0.10400028]
[1734468103328,0.8153,3945.1,3944.7,0.10400028]
[1734468103533,0.8153,3945.1,3943.7,1.26781]
[1734468103756,0.8153,3945.1,3943.8,0.28515033]
[1734468103959,0.8153,3945.1,3944.0,1.26774]
[1734468104226,2.53473,3945.2,3944.1,1.39708425]
[1734468104434,2.53473,3945.2,3944.2,0.10403381]
[1734468104680,2.53473,3945.2,3944.3,0.10403381]
[1734468104976,4.92205696,3945.6,3944.4,0.00403381]
[1734468105149,4.92205696,3945.6,3944.3,1.26764]
[1734468105467,2.53471,3945.3,3944.2,0.55]
[1734468105770,2.53471,3945.3,3944.3,0.55]
[1734468107246,1.92205696,3945.1,3943.9,1.05239195]
[1734468107448,5.49579266,3945.5,3943.5,1.19455258]
[1734468107666,2.49579266,3945.5,3943.8,1.26778]
[1734468107976,2.53508,3944.7,3943.8,0.46472931]
[1734468108275,0.63110927,3945.4,3943.9,0.87446396]
[1734468108276,2.53488,3945.0,3943.9,0.87446396]
[1734468108504,0.63110927,3945.4,3944.0,0.02535182]
[1734468108505,2.53493,3944.9,3944.0,0.02535182]
[1734468108652,2.53466,3945.3,3943.8,1.73251931]
[1734468109014,3.31369,3944.8,3943.9,0.8744258]
[1734468109189,3.31369,3944.8,3943.9,1.54036751]
[1734468109353,0.7787,3944.8,3944.0,0.8744258]
[1734468109699,2.53508,3944.7,3944.0,0.8744258]
[1734468110286,2.53493,3944.9,3944.0,1.31306362]
[1734468110496,2.53493,3944.9,3944.1,0.87528261]
[1734468110651,2.53493,3944.9,3943.9,1.71833366]
[1734468110847,2.53493,3944.9,3944.0,2.64429084]
[1734468111205,2.53465,3945.4,3944.2,1.05239195]
[1734468111381,2.53465,3945.4,3944.3,2.18774798]
[1734468111584,2.53466,3945.3,3944.4,2.35381549]
[1734468111890,0.7787,3945.7,3944.5,0.16606751]
[1734468111891,2.53473,3945.2,3944.5,0.16606751]
[1734468112102,2.53473,3945.2,3944.2,1.05239195]
[1734468112103,2.53473,3945.2,3944.3,0.16609224]
[1734468112307,2.53473,3945.2,3944.4,2.3542964]
[1734468112506,2.53473,3945.2,3944.5,1.0413739]
[1734468112709,0.7787,3945.7,3944.3,1.55278367]
[1734468112917,2.5348,3945.1,3944.4,2.35481069]
[1734468113070,2.5348,3945.1,3944.5,1.04164729]
[1734468113266,2.5348,3945.1,3944.3,0.50039172]
[1734468113607,2.5348,3945.1,3944.4,2.6677433]
[1734468113805,2.5348,3945.1,3944.5,0.87537921]
[1734468113967,2.5348,3945.1,3944.5,1.04154616]
[1734468114176,2.5348,3945.1,3944.4,0.31313716]
[1734468114375,2.5348,3945.1,3944.5,1.04153013]
[1734468114584,2.5348,3945.1,3944.4,0.31313716]
[1734468114791,2.5348,3945.1,3944.5,1.04153775]
[1734468114989,0.25348,3945.1,3944.2,1.05239195]
[1734468115201,2.53511,3944.6,3943.9,1.05239195]
[1734468115428,2.53511,3944.6,3944.0,2.35539308]
[1734468115589,2.53511,3944.6,3944.1,1.04192755]
[1734468115785,2.53511,3944.6,3943.9,1.05239195]
[1734468116031,2.53511,3944.6,3944.0,1.04192538]
[1734468116192,2.53511,3944.6,3944.1,1.04192538]
[1734468116390,2.53203288,3944.6,3943.9,1.61548994]
[1734468116725,2.535,3944.8,3944.0,2.35535796]
[1734468116928,2.535,3944.8,3944.1,1.04191016]
[1734468117133,2.535,3944.8,3944.2,0.10391724]
[1734468117317,0.7787,3945.0,3944.3,0.10391724]
[1734468117318,2.5351,3944.7,3944.3,0.10391724]
[1734468117517,2.5351,3944.7,3944.1,0.16628338]
[1734468117722,2.5351,3944.7,3944.2,0.10391912]
[1734468117888,2.5351,3944.7,3944.3,0.10391912]
[1734468118212,2.5351,3944.7,3944.4,0.10391912]
[1734468118399,2.5351,3944.7,3944.1,0.16628452]
[1734468118598,2.5351,3944.7,3944.2,0.10391652]
[1734468118808,2.5351,3944.7,3944.1,0.34446197]
[1734468118982,2.53491,3945.0,3944.2,0.10391482]
[1734468119187,2.53497,3944.9,3944.3,0.10391482]
[1734468119503,0.7787,3945.5,3944.4,0.10391482]
[1734468119829,0.7787,3945.5,3944.1,0.16627963]
[1734468119830,2.53506,3944.7,3944.1,0.16627963]
[1734468120034,2.53506,3944.7,3944.2,0.1039253]
[1734468120219,2.53506,3944.7,3944.3,0.1039253]
[1734468120421,1.05572729,3945.3,3944.4,0.1039253]
[1734468120621,2.53504,3944.7,3944.0,0.16627963]
[1734468120834,2.53534,3944.3,3944.1,0.10397486]
[1734468120995,2.53534,3944.3,3944.2,0.10397486]
[1734468123116,2.53534,3944.3,3944.2,0.00397486]
[1734468123538,2.53534,3944.3,3943.9,0.16627963]
[1734468123833,2.53534,3944.3,3943.8,0.16627963]
[1734468123997,2.53534,3944.3,3943.9,1.04294364]
[1734468124194,2.53534,3944.3,3944.0,0.87661604]
[1734468124398,2.53534,3944.3,3943.7,1.05239195]
[1734468124593,2.53534,3944.3,3943.8,2.35800093]
[1734468124838,2.53534,3944.3,3943.7,1.05239195]
[1734468124839,2.53534,3944.3,3943.9,2.35792071]
[1734468125039,2.53534,3944.3,3944.0,0.87663627]
[1734468125246,2.53534,3944.3,3943.7,1.05239195]
[1734468125409,2.53534,3944.3,3943.8,2.35788281]
[1734468125624,2.53519,3944.5,3943.9,2.35788281]
[1734468125808,2.53519,3944.5,3944.0,0.87658656]
[1734468126015,2.53519,3944.5,3943.7,1.61548994]
[1734468126340,2.53524,3944.4,3943.8,2.35782325]
[1734468126515,2.53524,3944.4,3943.9,0.87656651]
[1734468126713,2.53512,3944.6,3943.7,1.61548994]
[1734468126893,0.7787,3944.8,3943.8,2.6773048]
[1734468127111,1.05572729,3945.1,3943.9,2.21672233]
[1734468127316,1.05572729,3945.3,3944.1,1.26771]
[1734468127527,1.05572729,3945.3,3944.2,2.14425615]
[1734468127758,2.94355459,3945.7,3944.0,1.60239195]
[1734468127759,4.42226729,3945.7,3944.3,3.40904119]
[1734468128067,2.5347,3945.3,3944.4,2.35664924]
[1734468128214,2.5347,3945.3,3944.5,0.87611617]
[1734468128413,2.5347,3945.3,3944.3,0.4365609]
[1734468128624,2.5347,3945.3,3944.4,2.35666473]
[1734468128828,2.5347,3945.3,3944.5,0.87618561]
[1734468129054,2.5347,3945.3,3944.5,0.23651385]
[1734468129364,2.53479,3945.1,3944.5,0.23651385]
[1734468129561,2.53472,3945.3,3944.5,0.23651385]
[1734468129775,2.5347,3945.3,3944.5,0.23651385]
[1734468130074,2.53473,3945.2,3944.5,0.23651385]
[1734468130656,1.05572729,3945.5,3944.5,0.23651385]
[1734468130840,2.53487,3945.0,3944.2,1.05239195]
[1734468131040,2.53487,3945.0,3944.0,1.57858793]
[1734468131041,2.53469,3945.3,3944.3,2.35731611]
[1734468131242,2.53502,3944.8,3944.1,1.05239195]
[1734468131443,2.53502,3944.8,3944.2,2.19142847]
[1734468131765,2.53502,3944.8,3944.0,1.05239195]
[1734468131766,2.53502,3944.8,3944.3,0.87657139]
[1734468131970,2.53502,3944.8,3944.0,1.05239195]
[1734468132137,2.53502,3944.8,3944.1,2.35750159]
[1734468132346,2.53502,3944.8,3944.2,2.19126708]
[1734468132669,2.53502,3944.8,3944.3,0.87659536]
[1734468132858,2.53502,3944.8,3944.0,1.55790911]
[1734468133055,2.53502,3944.8,3944.1,2.35779697]
[1734468133256,2.53502,3944.8,3944.2,2.35779697]
[1734468133570,0.336712,3944.8,3944.3,0.8766099]
[1734468133866,0.8321,3945.0,3943.6,2.10478391]
[1734468133867,0.8321,3945.0,3943.9,1.05239195]
[1734468134068,2.53518,3944.5,3944.0,2.35815114]
[1734468134275,0.8321,3945.0,3943.8,1.05239195]
[1734468134276,2.53505,3944.7,3943.8,1.05239195]
[1734468134491,2.53491,3945.0,3943.9,3.43586552]
[1734468134630,1.05572729,3945.2,3944.0,3.16167632]
[1734468134833,2.53461,3945.4,3944.3,2.32003195]
[1734468135096,2.53461,3945.4,3944.4,2.3581212]
[1734468135236,2.53461,3945.4,3944.5,2.46201338]
[1734468135572,2.53461,3945.4,3944.6,2.46201338]
[1734468135873,2.53461,3945.4,3944.7,0.98061899]
[1734468136086,2.53461,3945.4,3944.8,0.10389218]
[1734468136229,2.53461,3945.4,3944.9,0.10389218]
[1734468136436,2.53461,3945.4,3944.5,1.05239195]
[1734468136629,2.53461,3945.4,3944.6,2.46082818]
[1734468136874,2.53461,3945.4,3944.7,0.98017091]
[1734468137081,2.53461,3945.4,3944.8,0.10383377]
[1734468137293,3.80988425,3945.7,3944.8,0.10383377]
[1734468137493,2.53446,3945.7,3944.5,2.31996195]
[1734468137792,2.53446,3945.7,3944.6,3.51211474]
[1734468137953,2.53446,3945.7,3944.7,2.45972279]
[1734468138294,2.53446,3945.7,3944.8,2.29361668]
[1734468138584,2.53446,3945.7,3944.9,2.29415258]
[1734468138792,2.53446,3945.7,3945.0,0.10380636]
[1734468139096,2.53446,3945.7,3945.1,0.10380636]
[1734468139258,2.53446,3945.7,3944.8,0.16612049]
[1734468139596,2.53446,3945.7,3944.9,2.29533472]
[1734468139751,2.53446,3945.7,3945.0,0.9804242]
[1734468139952,2.53446,3945.7,3944.7,1.05239195]
[1734468139953,2.53446,3945.7,3945.1,0.10381719]
[1734468140199,2.53453,3945.5,3944.8,0.16613857]
[1734468140408,2.53453,3945.5,3944.9,0.98055358]
[1734468140705,2.53453,3945.5,3945.0,0.10382246]
[1734468140855,2.53453,3945.5,3944.7,1.05239195]
[1734468141055,2.53453,3945.5,3944.8,2.29550784]
[1734468141256,2.53453,3945.5,3944.7,1.05239195]
[1734468141257,2.53453,3945.5,3944.9,2.29550784]
[1734468141449,2.9294576,3945.5,3945.0,0.10382871]
[1734468141682,2.9294576,3945.5,3944.7,1.05239195]
[1734468141881,2.53453,3945.5,3944.8,2.29548367]
[1734468142149,2.53453,3945.5,3944.9,0.9804826]
[1734468142460,2.53453,3945.5,3945.0,0.10381522]
[1734468142663,2.53462,3945.4,3944.6,1.05239195]
[1734468142846,0.773,3945.6,3944.7,2.29540606]
[1734468143053,0.773,3945.6,3944.6,1.05239195]
[1734468143054,3.7796866,3945.6,3944.8,2.29540606]
[1734468143299,3.0066866,3945.6,3944.9,0.98045031]
[1734468143504,3.0066866,3945.6,3944.6,1.05239195]
[1734468143793,2.53456,3945.5,3944.7,2.2952333]
[1734468144098,2.53456,3945.5,3944.4,2.84619793]
[1734468144099,2.53456,3945.5,3944.8,0.98037482]
[1734468144317,2.97671126,3945.5,3944.9,0.1038025]
[1734468144453,2.97671126,3945.5,3944.6,1.05239195]
[1734468144793,2.97671126,3945.5,3944.7,2.295168]
[1734468144995,2.97671126,3945.5,3944.8,2.295168]
[1734468145155,2.97671126,3945.5,3944.6,1.05239195]
[1734468145156,2.97671126,3945.5,3944.9,0.10379655]
[1734468145492,2.97671126,3945.5,3944.6,1.05239195]
[1734468145652,2.97671126,3945.5,3944.7,2.29506413]
[1734468145856,2.53461,3945.4,3944.8,0.98029985]
[1734468146176,2.53461,3945.4,3944.9,0.10379033]
[1734468146376,2.91540866,3945.4,3944.6,1.05239195]
[1734468146555,2.91540866,3945.4,3944.7,2.29492274]
[1734468146757,2.91540866,3945.4,3944.8,0.98023972]
[1734468146992,2.91540866,3945.4,3944.6,1.05239195]
[1734468147200,2.91540866,3945.4,3944.7,2.29490629]
[1734468147395,2.91540866,3945.4,3944.8,0.98023085]
[1734468147695,2.91540866,3945.4,3944.9,0.10378453]
[1734468147895,0.38079866,3945.4,3944.6,1.05239195]
[1734468148081,1.05572729,3945.8,3944.7,2.29483964]
[1734468148412,2.53447,3945.6,3944.8,2.29495817]
[1734468148617,2.53447,3945.6,3944.9,0.10377774]
[1734468148759,2.53447,3945.6,3944.6,1.44224594]
[1734468148959,2.53447,3945.6,3944.7,2.2948881]
[1734468149300,2.53447,3945.6,3944.8,2.2948881]
[1734468149595,2.53447,3945.6,3944.9,0.10378083]
[1734468149795,2.53447,3945.6,3944.6,2.70978594]
[1734468149951,2.53447,3945.6,3944.7,2.29485269]
[1734468150155,2.53447,3945.6,3944.8,2.29485269]
[1734468150356,2.53447,3945.6,3944.9,0.10378225]
[1734468150594,2.53447,3945.6,3944.6,2.70978594]
[1734468150595,1.05572729,3945.8,3944.6,1.44224594]
[1734468150803,3.773,3945.9,3944.6,1.44224594]
[1734468150804,2.53452,3945.6,3944.7,2.46093095]
[1734468151108,2.53453,3945.5,3944.8,2.29487845]
[1734468151286,2.53453,3945.5,3944.9,0.98021554]
[1734468151600,2.53453,3945.5,3945.0,0.10376522]
[1734468151801,2.53453,3945.5,3944.7,0.16605372]
[1734468151952,2.53453,3945.5,3944.8,2.29473321]
[1734468152297,2.53453,3945.5,3944.9,0.98015761]
[1734468152507,2.53453,3945.5,3945.0,0.10377388]
[1734468152706,2.53453,3945.5,3944.7,0.16606733]
[1734468152907,0.253453,3945.5,3944.8,0.98017092]
[1734468153204,1.82872729,3945.9,3944.9,0.1038123]
[1734468153430,2.53439,3945.8,3945.0,0.1038123]
[1734468153616,1.82872729,3945.9,3945.0,0.10380738]
[1734468153758,1.82872729,3945.9,3944.6,1.05239195]
[1734468153759,2.53434,3945.8,3944.6,1.05239195]
[1734468153957,1.05572729,3945.8,3944.7,2.29474383]
[1734468154197,2.53449,3945.6,3944.8,2.29474383]
[1734468154407,2.53449,3945.6,3944.9,0.1038094]
[1734468154570,2.53449,3945.6,3945.0,0.1038094]
[1734468154769,2.53449,3945.6,3944.7,0.16613422]
[1734468154991,2.53449,3945.6,3944.8,2.29469056]
[1734468155294,2.53461,3945.4,3944.9,0.98015304]
[1734468155494,2.53461,3945.4,3945.0,0.10382423]
[1734468155693,2.53461,3945.4,3944.7,0.16615824]
[1734468155879,2.53461,3945.4,3944.8,2.46081907]
[1734468156201,2.53461,3945.4,3944.9,0.87633389]
[1734468156502,2.53461,3945.4,3945.0,0.10383979]
[1734468156703,2.53461,3945.4,3944.7,0.16619516]
[1734468156860,2.53461,3945.4,3944.5,1.05239195]
[1734468157056,2.53461,3945.4,3944.6,3.5134515]
[1734468157301,2.53461,3945.4,3944.7,2.46105955]
[1734468157460,2.53461,3945.4,3944.8,0.87638042]
[1734468157804,2.53461,3945.4,3944.9,0.10387439]
[1734468157974,2.53461,3945.4,3944.6,1.05239195]
[1734468157975,2.53461,3945.4,3945.0,0.10387439]
[1734468158176,2.53461,3945.4,3944.6,1.05239195]
[1734468158372,2.53461,3945.4,3944.7,2.46022167]
[1734468158590,2.53461,3945.4,3944.8,0.97992846]
[1734468158913,2.53461,3945.4,3944.9,0.10384571]
[1734468159126,2.53461,3945.4,3945.0,0.10384571]
[1734468159277,2.53461,3945.4,3944.5,1.44225094]
[1734468159475,2.53461,3945.4,3944.6,2.88944766]
[1734468159671,2.76832443,3945.7,3944.7,2.46060277]
[1734468159873,2.53202281,3944.7,3944.1,1.05239195]
[1734468160100,0.7566,3944.9,3944.2,2.46186097]
[1734468160416,2.53512,3944.6,3944.3,0.1039372]
[1734468160576,2.535,3944.8,3944.4,0.1039372]
[1734468160777,2.535,3944.8,3944.1,0.16630535]
[1734468160977,2.535,3944.8,3944.2,2.46200744]
[1734468161179,2.53505,3944.7,3944.3,0.1039168]
[1734468161395,2.53505,3944.7,3944.4,0.1039168]
[1734468161596,2.53505,3944.7,3944.2,0.16628075]
[1734468161817,2.53505,3944.7,3944.3,0.10391602]
[1734468162016,2.53505,3944.7,3944.4,0.10391602]
[1734468162275,1.05572729,3945.3,3944.5,0.10391602]
[1734468162505,1.05572729,3945.4,3944.6,0.27015546]
[1734468162706,2.53449,3945.6,3944.7,2.43348581]
[1734468162922,2.53449,3945.6,3944.8,2.19092356]
[1734468163084,2.53449,3945.6,3944.9,0.87636942]
[1734468163279,2.53449,3945.6,3944.7,1.2949542]
[1734468163490,2.53449,3945.6,3944.8,2.19071345]
[1734468163696,2.53449,3945.6,3944.9,0.34856677]
[1734468163920,2.53449,3945.6,3944.7,0.24256225]